[Event "SixDays Budapest January IM-B 2025"]
[Site "Budapest"]
[Date "2025.01.28"]
[Round "5.5"]
[White "Vandan Alankar Sawai"]
[Black "Varga, Csaba Zoltan"]
[Result "0-1"]
[Annotator "TA"]
[ECO "B97"]
[WhiteElo "2177"]
[BlackElo "2198"]
[PlyCount "193"]
[EventDate "2025.01.24"]
[EventType "tourn"]
[EventCountry "HUN"]
[SourceTitle "playchess.com"]
[Source "ChessBase"]
[SourceQuality "1"]
[TimeControl "5400+30"]

{[%evp 16,193,4,-7,28,12,17,0,0,-21,14,14,9,30,32,6,45,21,12,-31,-29,-27,-9,-20,-30,-32,-5,-23,-22,-57,-14,-44,-20,-10,-31,-19,-9,-8,-18,-86,-83,-93,-84,-93,-54,-66,-39,-40,-47,-39,-8,-48,-48,-177,25,10,25,0,0,0,0,-166,-158,-162,-148,-175,-170,-121,0,0,0,0,0,0,0,0,0,0,0,0,0,0,0,-57,0,0,0,0,0,0,0,0,0,0,0,0,0,0,0,0,0,-60,-52,-81,-81,-104,-104,-88,-40,-48,-64,-62,-40,-112,-38,-353,-30,-29,-14,-14,-14,-14,-8,-198,-198,-198,-198,-198,-198,-178,-36,-29968,-36,-36,-36,-36,-40,-29976,-29977,-29977,-29978,-29978,-29977,-29979,-29979,-29979,-29979,-29979,-29980,-29981,-29981,-29980,-29981,-29984,-29985,-29985,-29986,-29986,-29987,-29988,-29989,-29989,-29990,-29990,-29990,-29990,-29987,-29987,-29987,-29987,-29988,-29988,-29988,-29988,-29989,-29991,-29992,-29992,-29993,-29996]} 1. e4 {[%emt 0:00:11]} c5 {[%emt 0:00:05]} 2. Nf3 {[%emt 0:00:29]} d6 {[%emt 0:00:03]} 3. d4 {[%emt 0:00:10]} cxd4 {[%emt 0:00:03]} 4. Nxd4 {[%emt 0:00:11]} Nf6 {[%emt 0:00:04]} 5. Nc3 {[%emt 0:00:10]} a6 {[%emt 0:00:02]} 6. Bg5 {[%emt 0:00:10]} e6 {[%emt 0:00:04]} 7. f4 {[%emt 0:00:07]} Qb6 {[%emt 0:00:01]} 8. a3 {[%emt 0:00:09]} Nbd7 {[%emt 0:00:03]} 9. Bh4 {[%emt 0:09:37]} Rb8 {[%emt 0:06:06]} (9... Qxb2 $2 10. Na4 $18) 10. Bf2 {[%emt 0:00:18]} Qc7 {[%emt 0:00:22]} (10... Qxb2 $2 11. Na4 $18) 11. Bd3 {[%emt 0:01:47]} b5 {[%emt 0:00:16]} 12. Qe2 {[%emt 0:00:08]} h5 {[%emt 0:01:38]} 13. h3 {[%emt 0:02:45]} Nc5 {[%emt 0:01:05]} 14. O-O {[%emt 0:05:31]} Bb7 {[%emt 0:06:53]} 15. Rae1 {[%emt 0:00:11]} Rc8 {[%emt 0:02:24]} 16. Nf3 {[%emt 0:01:16]} Be7 {[%emt 0:01:22]} 17. e5 {[%emt 0:09:31]} Nxd3 {[%emt 0:01:21]} 18. cxd3 {[%emt 0:00:13]} dxe5 {[%emt 0:03:24]} 19. Nxe5 {[%emt 0:00:10]} O-O {[%emt 0:00:45]} 20. Bh4 {[%emt 0:02:01]} g6 {[%emt 0:01:49]} 21. Qf2 {[%emt 0:04:27]} Qd8 {[%emt 0:02:05]} (21... Kg7 {is more complex.} 22. Qg3 Ng8 23. Ne4 Qd8) 22. Rd1 {[%emt 0:02:58]} Rc7 {[%emt 0:11:48]} (22... Bc5 $5 23. d4 Be7 $11) 23. Qe2 {[%emt 0:09:15]} Qd4+ {[%emt 0:02:23]} 24. Bf2 {[%emt 0:01:26]} Qd6 {[%emt 0:01:12]} (24... Qxf4 $2 25. Bb6 Qg5 26. Bxc7 $18) 25. Ne4 {[%emt 0:02:50]} Qd5 {[%emt 0:00:14]} 26. Bb6 {[%emt 0:00:51]} Rcc8 {[%emt 0:00:28]} 27. Ng5 {[%emt 0:00:22]} (27. Rfe1 $11 {keeps the balance.}) 27... Nd7 $17 {[%emt 0:01:49]} 28. Nxd7 {[%emt 0:00:45]} Qxd7 {[%emt 0:00:07]} 29. Ba5 {[%emt 0:04:09]} Bf6 {[%emt 0:02:35]} 30. Ne4 {[%emt 0:00:34]} Qd4+ {[%emt 0:01:40]} 31. Rf2 {[%emt 0:00:36]} Bh4 {[%emt 0:03:27]} 32. g3 {[%emt 0:01:45]} Bd8 {[%emt 0:14:08]} 33. Bb4 h4 34. g4 {[%emt 0:04:50] [#]} (34. Kh2 $15) 34... f5 $2 {[%emt 0:03:16]} (34... Bb6 $1 $19 {[%cal Ob7e4]} 35. Bxf8 (35. Bc3 Rxc3) 35... Kxf8 (35... Rxf8 36. g5 $17)) 35. Nd6 {[%emt 0:05:30]} (35. gxf5 $5 exf5 (35... Rxf5 36. Bc3 $14) 36. Nd6 $14) 35... Bb6 $1 {[%emt 0:05:25]} 36. Nxb7 {[%emt 0:02:15]} (36. Nxc8 $5 Qxf2+ 37. Qxf2 Bxf2+ 38. Kxf2 Rxc8 39. gxf5 exf5 40. Rd2 $11) 36... fxg4 $1 {[%emt 0:03:22]} 37. Bxf8 {[%emt 0:08:22]} Rxf8 {[%emt 0:03:16]} 38. Qxe6+ $2 {[%emt 0:01:46]} (38. hxg4 $1 $11 Rxf4 39. Rdf1 (39. Qxe6+ Kf8 $17)) 38... Kh8 $19 {[%emt 0:01:16]} 39. Rdd2 {[%emt 0:05:26]} g3 {[%emt 0:01:05]} (39... Rxf4 40. Qe8+ Kg7 41. Qe7+ Kg8 42. Qe8+ Kg7 43. Qe7+ Kg8 44. Qe8+ Kh7 45. Qe7+ Kg8 $11) 40. Qxg6 {[%emt 0:01:02]} gxf2+ {[%emt 0:00:16]} 41. Kf1 {[%emt 0:00:06] [#]} Qxf4 {[%emt 0:04:13]} (41... Rxf4 $2 42. Re2 Qg7 (42... Rf8 43. Re7) 43. Re8+ (43. Qxb6 $2 Qg1#) 43... Rf8 44. Rxf8+ (44. Qxb6 $2 Qg1+ 45. Ke2 Qe1#) 44... Qxf8 45. Qxb6 $18) (41... Rf6 $1 $17 {[%cal Rf6g6]} 42. Qg5 Qxf4 (42... Rxf4 43. Qh6+ Kg8 44. Nd6 $15) 43. Qxf4 Rxf4) 42. Qxb6 $11 {[%emt 0:01:35]} Qxd2 {[%emt 0:00:06]} 43. Qd4+ {[%emt 0:00:05]} Kh7 {[%emt 0:01:18]} 44. Qe4+ {[%emt 0:00:39]} Kg7 {[%emt 0:00:38]} 45. Qg4+ {[%emt 0:00:35]} Kf6 {[%emt 0:00:18]} 46. Qf3+ {[%emt 0:00:52]} Kg6 {[%emt 0:00:42]} 47. Qe4+ $1 {[%emt 0:00:38]} Rf5 {[%emt 0:01:22]} (47... Kh5 $5 48. Qg4+ $8 Kh6 49. Qe6+ Kg7 50. Qe7+ Rf7 51. Qe5+ Rf6 52. Qe7+ Kg6 53. Qe8+ Kh6 54. Qh8+ Kg5 55. Qg8+ Rg6 56. Qd8+ Kf4 (56... Rf6 57. Qg8+ Rg6 58. Qd8+ Kf4 59. Qxh4+ Kf5 60. Qe4+ Kf6 61. Qd4+ Kf7 62. Qxf2+ Qxf2+ 63. Kxf2 $19) 57. Qxh4+ Kf5 58. Qe4+ Kf6 59. Qd4+ Kf7 60. Qxf2+ Qxf2+ 61. Kxf2 Ke6 $17) 48. Qe8+ {[%emt 0:00:44]} Kg7 {[%emt 0:03:59]} 49. Qd7+ {[%emt 0:00:28]} (49. Qe7+ $11 Rf7 50. Qe5+ Rf6 51. Qe7+ Kg8 52. Qe8+ (52. Qxf6 Qe1+ 53. Kg2 Qg1+ 54. Kf3 f1=Q+ 55. Ke4 Qxf6 56. Kd5 Qgd4#) 52... Kg7 53. Qe7+) 49... Kf6 {[%emt 0:01:39]} (49... Rf7 $1 $15 50. Qg4+ Kh8 51. Qxh4+ Kg8 52. Qg4+ Rg7 53. Qe6+ Kh8 54. Qe8+ Kh7 55. Qe4+ Kh8 56. Qe8+) 50. Qd6+ $11 {[%emt 0:00:19]} Kg5 {[%emt 0:00:35]} 51. Qe7+ {[%emt 0:00:08]} Kg6 {[%emt 0:00:35]} 52. Qe6+ {[%emt 0:00:18]} Kg5 {[%emt 0:03:20]} 53. Qg8+ {[%emt 0:00:22]} Kf4 {[%emt 0:00:28]} 54. Qg4+ {[%emt 0:00:46]} Ke5 {[%emt 0:00:05]} 55. Qg7+ {[%emt 0:00:36]} Rf6 {[%emt 0:01:34]} 56. Qe7+ {[%emt 0:00:22]} Kf5 $1 {[%emt 0:01:20]} 57. Qh7+ {[%emt 0:00:54]} Kg5 {[%emt 0:01:36]} 58. Qg7+ {[%emt 0:00:07]} (58. Qg8+ $11 Rg6 59. Qd8+ Kf4 (59... Rf6 60. Qg8+ Rg6 61. Qd8+ Rf6 62. Qg8+ $11) 60. Qxh4+ Kf5 61. Qe4+ Kg5 62. Qg4+ Kf6 63. Qd4+ Kg5 64. Qg4+) 58... Kh5 $1 $15 {[%emt 0:00:17]} (58... Rg6 59. Qe5+ Kh6 60. Qh8+ Kg5 61. Qe5+ Kh6 62. Qh8+ Kg5 63. Qe5+ $11) 59. Qg4+ {[%emt 0:00:18]} (59. Qxf6 Qe1+ (59... Qxd3+ 60. Kxf2 Qg3+ 61. Ke2 $16) 60. Kg2 Qg1+ 61. Kf3 f1=Q+ (61... f1=R+ 62. Ke4 Rxf6 63. a4 Qb6 64. b4 Qxb7+ 65. Kd4 Qd7+ 66. Ke4 Re6+ 67. Kf3 Qxd3+ 68. Kg2 Re2+ 69. Kh1 Qd1#) 62. Ke4 Qxf6 63. Kd5 Qgd4#) 59... Kh6 {[%emt 0:00:04]} 60. Qxh4+ {[%emt 0:00:09] [#]} Kg7 $1 {[%emt 0:00:23]} 61. Qg4+ {[%emt 0:00:20]} Kh8 {[%emt 0:00:59]} (61... Rg6 $17 {( -> ...Qe1+)} 62. Qd4+ Kh7 63. Qh4+ Qh6 64. Qe7+ Rg7 65. Qe4+ Qg6) 62. Qh4+ {[%emt 0:00:25]} Qh6 {[%emt 0:00:14]} (62... Kg7 $2 63. Qg4+ Kh8 64. Qh4+ Qh6 65. Qxh6+ Rxh6 66. Kxf2 $19) 63. Qxh6+ {[%emt 0:00:21]} Rxh6 {[%emt 0:00:04]} 64. Nc5 {[%emt 0:00:30]} (64. Kxf2 $15 Rxh3 65. Nc5) 64... a5 {[%emt 0:00:36]} (64... Rxh3 65. Kxf2 a5 66. b3 $19) (64... Rf6 $17 65. b4 Kg7) 65. Nb3 $2 {[%emt 0:00:28][%mdl 8192]} ({White should play} 65. Kxf2 $15 Rxh3 66. b3) 65... Rc6 $2 {[%emt 0:01:56]} (65... Rxh3 66. Nxa5 Rxd3 67. Kxf2 $17) (65... a4 $19 66. Nd4 b4 (66... Rxh3 67. Nxb5 Rxd3 68. Kxf2 $17) 67. Kxf2 Rxh3) 66. Nd4 $1 $11 {[%emt 0:01:01]} Rc1+ {[%emt 0:00:39]} 67. Kxf2 {[%emt 0:00:02]} Rb1 {[%emt 0:00:05]} 68. b3 {[%emt 0:00:28]} Kg7 {[%emt 0:01:14]} 69. Nxb5 $2 {[%emt 0:00:41]} (69. Kf3 $11 {and White is okay.}) 69... Rxb3 $19 {[%emt 0:00:07]} 70. a4 {[%emt 0:00:03]} Rxd3 {[%emt 0:00:31]} 71. Ke2 {[%emt 0:00:30]} Rxh3 {[%emt 0:00:05]} 72. Nd6 {[%emt 0:00:33]} Ra3 {[%emt 0:00:27]} ({Black should try} 72... Rh1 $19 {And now ...Kf6 would win.} 73. Ke3 Rh5) 73. Kd2 $2 {[%emt 0:00:45][%mdl 8192]} (73. Nc4 $15 Rxa4 74. Kd3) 73... Kf6 $2 {[%emt 0:00:33]} (73... Rxa4 {mates} 74. Kc3 Rb4 75. Nc4 Rb5 76. Nb2 Kf6 77. Kc2 Ke6 78. Kc3 Kd5 79. Na4 Rb8 80. Nb2 Rc8+ 81. Kb3 Kd4 82. Na4 Rh8 83. Kc2 Rh2+ 84. Kb3 Rh3+ 85. Kb2 Kc4 86. Nb6+ Kc5 87. Nd7+ Kb4 88. Nf6 Rh2+ 89. Kc1 a4 90. Ng4 Re2 91. Kd1 Rb2 92. Ne3 Kc3 93. Ke1 a3 94. Nd1+ Kb3 95. Kf1 Rd2 96. Ke1 Rh2 (96... Rxd1+ {gets mated.} 97. Kxd1 a2 98. Ke2 a1=Q 99. Ke3 Qa4 100. Kf3 Qh4 101. Ke3 Kc4 102. Ke2 Qf4 103. Kd1 Qf2 104. Kc1 Kc3 105. Kd1 Qf1#) 97. Kf1 a2 98. Kg1 Rd2 (98... a1=R 99. Kxh2 Rxd1 100. Kg3 Rd4 101. Kf3 Kc2 102. Ke3 Rb4 103. Ke2 Rb3 104. Kf1 Kd1 105. Kf2 Rd3 106. Kg1 Ke1 107. Kg2 Ke2 108. Kh1 Rg3 109. Kh2 Kf2 110. Kh1 Rh3#) 99. Nf2 a1=Q+ (99... a1=B 100. Ng4 $19) 100. Kg2 Qe1 101. Kg3 Rxf2 102. Kh4 Rg2+ 103. Kh5 Qh1#) 74. Nc4 $1 $15 {[%emt 0:00:29]} Rxa4 {[%emt 0:00:04]} 75. Kc3 {[%emt 0:00:03]} Ke6 {[%emt 0:00:12]} 76. Kb3 $2 {[%emt 0:00:06][%mdl 8192]} (76. Kd4 $15) 76... Rb4+ {[%emt 0:00:04]} 77. Kc3 {[%emt 0:00:15]} Rb5 {[%emt 0:00:03]} 78. Nb2 {[%emt 0:00:29]} Kd5 {[%emt 0:00:09]} 79. Na4 {[%emt 0:00:22]} Rb4 {[%emt 0:00:10]} 80. Nb2 {[%emt 0:00:05]} Kc6 {[%emt 0:00:20]} 81. Nd3 {[%emt 0:00:33]} Rh4 {[%emt 0:00:51]} 82. Kb2 {[%emt 0:00:42]} Kb5 {[%emt 0:00:06]} 83. Ka2 {[%emt 0:00:19]} Kc4 {[%emt 0:00:14]} 84. Nb2+ {[%emt 0:00:22]} Kb4 {[%emt 0:00:22]} 85. Nd3+ {[%emt 0:00:04]} Kc3 {[%emt 0:00:07]} 86. Nc5 {[%emt 0:00:04]} Kc4 {[%emt 0:00:43]} 87. Nb7 {[%emt 0:00:25]} Kb4 {[%emt 0:00:23]} 88. Nd8 {[%emt 0:01:06]} Rh2+ {[%emt 0:00:05]} 89. Kb1 {[%emt 0:00:04]} Kb3 {[%emt 0:00:05]} 90. Kc1 {[%emt 0:00:04]} Rc2+ {[%emt 0:00:46]} 91. Kd1 {[%emt 0:00:09]} Kb2 {[%emt 0:00:40]} 92. Ne6 {[%emt 0:00:24]} a4 {[%emt 0:00:27]} 93. Nd4 {[%emt 0:00:05]} Rc1+ {[%emt 0:00:12]} 94. Kd2 {[%emt 0:00:04]} a3 {[%emt 0:00:07]} 95. Nb5 {[%emt 0:00:09]} a2 {[%emt 0:00:05]} 96. Nd4 {[%emt 0:00:02]} a1=Q {[%emt 0:00:10]} 97. Nb3 {[%emt 0:00:02]} 0-1

[Event "SixDays Budapest January IM-B 2025"]
[Site "Budapest"]
[Date "2025.01.29"]
[Round "6.1"]
[White "Subramanian, Anusha"]
[Black "Varga, Csaba Zoltan"]
[Result "1/2-1/2"]
[Annotator "TA"]
[ECO "C60"]
[WhiteElo "2044"]
[BlackElo "2198"]
[PlyCount "101"]
[EventDate "2025.01.24"]
[EventType "tourn"]
[EventCountry "HUN"]
[SourceTitle "playchess.com"]
[Source "ChessBase"]
[SourceQuality "1"]
[TimeControl "5400+30"]

{[%evp 9,101,37,65,57,60,55,169,151,192,175,287,184,261,92,97,110,89,62,66,72,94,91,110,84,89,80,95,71,95,76,95,89,111,97,103,112,103,70,75,62,93,89,86,52,52,51,63,46,51,48,47,31,36,33,34,33,85,12,8,13,18,8,8,4,32,12,17,4,8,0,23,0,25,0,28,0,5,0,43,14,84,0,0,0,0,0,0,0,0,0,0,0,0,0]} 1. e4 {[%emt 0:00:03]} e5 {[%emt 0:00:05]} 2. Nf3 {[%emt 0:00:05]} Nc6 {[%emt 0:00:04]} 3. Bb5 {[%emt 0:00:16]} Nge7 {[%emt 0:00:05]} 4. c3 {[%emt 0:00:19]} Ng6 {[%emt 0:00:33]} 5. O-O {[%emt 0:00:38]} Bd6 {[%emt 0:05:25]} 6. d4 {[%emt 0:01:30] C60: Ruy Lopez: Unusual Black 3rd moves and 3...g6.} O-O {[%emt 0:00:06]} 7. Be3 {[%emt 0:01:32]} f5 $146 {[%emt 0:03:23]} (7... exd4 $14 8. cxd4 Nce7) (7... exd4 8. cxd4 Bf4 9. Nc3 d6 10. Bc4 Na5 11. Bd3 Be6 12. d5 Bg4 13. Bxf4 Nxf4 {1-0 Faber,H-Vogt,J KO-23397 freechess.de 2022}) 8. exf5 {[%emt 0:06:00] White is clearly better.} Rxf5 {[%emt 0:06:32]} 9. Bd3 {[%emt 0:06:29]} Rh5 {[%emt 0:01:40]} (9... Qf6 $142 10. Nbd2 Bf8 11. dxe5 Ngxe5 12. Bxf5 Qxf5 13. Qb3+ Kh8) 10. dxe5 {[%emt 0:20:44]} Bxe5 {[%emt 0:05:22]} (10... Ngxe5 $142 11. Nxe5 Rxe5) 11. Nxe5 $2 {[%emt 0:08:09] [#]} (11. g4 $18 {is more deadly.}) 11... Rxe5 $16 {[%emt 0:00:24]} 12. Bxg6 {[%emt 0:01:37]} hxg6 {[%emt 0:00:06]} 13. Bf4 {[%emt 0:01:03] Prevents d6} Rf5 {[%emt 0:00:47]} 14. Bg3 {[%emt 0:00:19]} d5 {[%emt 0:00:38]} 15. Nd2 {[%emt 0:00:52]} Rf7 {[%emt 0:00:12]} 16. Nb3 {[%emt 0:00:38]} Bf5 {[%emt 0:01:17]} 17. Re1 {[%emt 0:00:27]} b6 {[%emt 0:01:40]} 18. Qd2 {[%emt 0:01:13]} a5 {[%emt 0:03:08]} 19. a4 {[%emt 0:03:05]} Kh7 {[%emt 0:03:07]} 20. Rad1 {[%emt 0:04:22]} Re7 {[%emt 0:16:05]} 21. Rxe7 {[%emt 0:04:55]} (21. Qxd5 $2 Qxd5 22. Nd4 Rxe1+ 23. Rxe1 Nxd4 24. cxd4 Qxd4 $19) 21... Qxe7 {[%emt 0:00:12]} 22. Re1 {[%emt 0:01:18]} (22. Qxd5 $2 Rd8 23. Qf3 Rd3 $19) 22... Qd7 {[%emt 0:02:00]} 23. Nd4 {[%emt 0:03:07]} Nxd4 {[%emt 0:03:14]} 24. Qxd4 {[%emt 0:00:09]} Re8 {[%emt 0:00:14] Black is weak on the dark squares} 25. Rxe8 {[%emt 0:08:31]} Qxe8 {[%emt 0:00:06][%mdl 4096] Endgame KQB-KQB} 26. Be5 {[%emt 0:00:18][%cal Oh2h3]} (26. Bxc7 $2 Qe1#) 26... Qd7 {[%emt 0:04:17]} 27. h3 {[%emt 0:07:38]} Be4 {[%emt 0:01:54]} 28. f3 {[%emt 0:01:58]} c5 {[%emt 0:00:06]} 29. Qd1 {[%emt 0:01:48]} Bf5 {[%emt 0:00:14]} 30. Kh2 {[%emt 0:05:21]} Qe6 {[%emt 0:03:26]} 31. Qe1 {[%emt 0:01:20]} g5 {[%emt 0:05:19] Prevents Qh4+} 32. Qg3 {[%emt 0:00:33][%cal Oe5c7]} Qe7 {[%emt 0:06:54]} ({Black should play} 32... Qg6 $14) 33. f4 {[%emt 0:01:49]} ({Better is} 33. Bc7 $16) 33... gxf4 $11 {[%emt 0:00:56]} 34. Qxf4 {[%emt 0:00:06]} Be4 {[%emt 0:02:06]} 35. Bc7 {[%emt 0:01:07]} Qe6 {[%emt 0:05:52]} 36. Qh4+ {[%emt 0:01:22]} Kg6 {[%emt 0:01:15]} 37. Qg3+ {[%emt 0:00:17]} (37. Qg4+ {simplifies} Qxg4 38. hxg4 d4 39. cxd4 cxd4 40. Bxb6 Bc2 41. Bxd4 Bxa4 42. Bb6) 37... Kf7 {[%emt 0:00:30]} 38. Qf4+ {[%emt 0:00:23]} Kg8 {[%emt 0:01:22]} 39. Qg5 {[%emt 0:00:46]} Kf7 {[%emt 0:01:56]} 40. Qf4+ {[%emt 0:00:26]} Ke8 {[%emt 0:02:11]} 41. Qg5 {[%emt 0:00:22]} Kf7 {[%emt 0:05:17]} 42. Qf4+ {[%emt 0:00:20]} Kg8 {[%emt 0:00:18]} 43. Qg5 {[%emt 0:00:16]} Bg6 {[%emt 0:00:57]} 44. Qd8+ {[%emt 0:00:54]} Be8 {[%emt 0:00:07] [#]} (44... Kh7 $11) 45. Bxb6 {[%emt 0:00:31] White is more active.} (45. Qb8 $1 $16) 45... Qe5+ {[%emt 0:00:17] The position is equal.} 46. Kg1 {[%emt 0:00:32]} Qe3+ {[%emt 0:00:12]} 47. Kh1 {[%emt 0:00:15][%cal Ob6c5] Threatens to win with Bxc5!.} Qc1+ {[%emt 0:01:03]} 48. Kh2 {[%emt 0:00:06]} Qf4+ {[%emt 0:00:05]} 49. Kh1 {[%emt 0:00:10]} Qf1+ {[%emt 0:00:43]} 50. Kh2 {[%emt 0:00:05]} Qf4+ {[%emt 0:00:03]} 51. Kh1 {[%emt 0:00:06] White really could win this.   Weighted Error Value: White=0.22 (precise) /Black=0.21 (precise)   Missed win:     	White=1     	---        Mistake:       	White=2     	Black=5      Inaccurate:     	White=5     	Black=3      OK:         	White=8     	Black=11     Best:        	---       	Black=6} 1/2-1/2

[Event "SixDays Budapest January IM-B 2025"]
[Site "Budapest"]
[Date "2025.01.29"]
[Round "6.2"]
[White "Ongut, Tamas Gunes"]
[Black "Vandan Alankar Sawai"]
[Result "1-0"]
[Annotator "NA RC"]
[ECO "A08"]
[WhiteElo "2262"]
[BlackElo "2177"]
[PlyCount "49"]
[EventDate "2025.01.24"]
[EventType "tourn"]
[EventCountry "HUN"]
[SourceTitle "playchess.com"]
[Source "ChessBase"]
[SourceQuality "1"]
[TimeControl "5400+30"]

1. Nf3 {[%emt 0:15:44]} d5 {[%emt 0:00:33]} 2. g3 {[%emt 0:00:34]} c5 {[%emt 0:08:42]} 3. Bg2 {[%emt 0:00:16]} Nc6 {[%emt 0:00:12]} 4. d4 {[%emt 0:00:08]} f6 {[%emt 0:03:54]} 5. O-O {[%emt 0:02:07]} cxd4 {[%emt 0:00:04]} 6. Nxd4 {[%emt 0:00:21]} e5 {[%emt 0:00:06]} 7. Nxc6 {[%emt 0:01:07]} bxc6 {[%emt 0:00:06]} 8. c4 {[%emt 0:02:54]} Ne7 {[%emt 0:04:22]} 9. Nc3 {[%emt 0:11:57]} Be6 {[%emt 0:05:24]} 10. Qa4 {[%emt 0:00:39]} dxc4 {[%emt 0:10:20]} 11. Rd1 {[%emt 0:00:41]} Qc8 {[%emt 0:00:15]} 12. Rd6 {[%emt 0:12:34]} Bd7 {[%emt 0:02:37]} 13. Rd1 {[%emt 0:07:39]} Be6 {[%emt 0:00:14]} 14. Ne4 {[%emt 0:03:11]} Nd5 {[%emt 0:00:24]} 15. Rxd5 {[%emt 0:04:48]} Bxd5 {[%emt 0:00:54]} 16. Nxf6+ {[%emt 0:00:07]} gxf6 {[%emt 0:00:18]} 17. Bxd5 {[%emt 0:00:09]} Rb8 {[%emt 0:02:53]} 18. Bxc6+ {[%emt 0:00:24]} Kf7 {[%emt 0:00:12]} 19. Qxa7+ {[%emt 0:00:46]} Kg6 {[%emt 0:00:41]} 20. Bd5 {[%emt 0:03:48]} Qe8 {[%emt 0:04:50]} 21. Be4+ {[%emt 0:00:46]} Kh5 {[%emt 0:02:29]} 22. g4+ {[%emt 0:05:14]} Kxg4 {[%emt 0:00:59]} 23. Qe3 {[%emt 0:00:35]} Rxb2 {[%emt 0:02:11]} 24. Qg3+ {[%emt 0:01:09]} Kh5 {[%emt 0:00:10]} 25. Qh3# {[%emt 0:00:07]} 1-0

[Event "SixDays Budapest January IM-B 2025"]
[Site "Budapest"]
[Date "2025.01.29"]
[Round "6.3"]
[White "Krizsany, Laszlo"]
[Black "Tancsa, Tamas"]
[Result "1/2-1/2"]
[Annotator "TA"]
[ECO "E61"]
[WhiteElo "2303"]
[BlackElo "2192"]
[PlyCount "24"]
[EventDate "2025.01.24"]
[EventType "tourn"]
[EventCountry "HUN"]
[SourceTitle "playchess.com"]
[Source "ChessBase"]
[SourceQuality "1"]
[TimeControl "5400+30"]

{[%evp 16,24,39,18,52,36,45,58,75,62,81]} 1. d4 {[%emt 0:00:22]} Nf6 {[%emt 0:00:17]} 2. c4 {[%emt 0:00:18]} g6 {[%emt 0:00:39]} 3. Nc3 {[%emt 0:00:17]} Bg7 {[%emt 0:00:14]} 4. g3 {[%emt 0:00:22]} O-O {[%emt 0:00:56]} 5. Bg2 {[%emt 0:00:06]} d6 {[%emt 0:00:05]} 6. e3 {[%emt 0:00:30]} e5 {[%emt 0:10:20]} 7. Nge2 {[%emt 0:00:34]} c6 {[%emt 0:00:49]} 8. O-O {[%emt 0:00:36]} Qc7 {[%emt 0:01:46] 8...Re8 gains popularity.} 9. b3 {[%emt 0:03:11]} Rd8 {[%emt 0:01:47] E61: King's Indian: Early deviations for White, including Smyslov System.} 10. Qd2 {[%emt 0:04:41]} a5 $146 {[%emt 0:10:58]} (10... exd4 11. Nxd4 Nbd7 12. Ba3 Nb6 13. e4 a6 14. Rfe1 Bd7 15. Rad1 c5 16. Nc2 Bc6 17. Ne3 {1-0 Cruz Lledo,P (2347)-Tudela Gonzalez,V (1936) La Nucia op 5th 2024 (3)}) 11. Rd1 {[%emt 0:02:18]} Bd7 {[%emt 0:02:10]} 12. Ba3 {[%emt 0:03:50] dxe5 would now be deadly.} Bf8 {[%emt 0:00:22] Black did not feel at home in the position after the opening.   Weighted Error Value: White=0.12 (very precise) /Black=0.20 (precise)} 1/2-1/2